bitfinex/quotes_ETHUSD_20240819
["timestamp","ask_amount","ask_price","bid_price","bid_amount"]
[1724032915447,2.4281,2635.0,2634.8,3.79535]
[1724032918126,2.4281,2635.0,2634.6,5.41653]
[1724032918536,6.22316,2635.0,2634.5,3.79576]
[1724032918756,2.4154,2634.9,2634.5,3.79576]
[1724032919075,2.4154,2634.9,2634.4,1.621]
[1724032919563,6.21078,2634.8,2634.4,1.621]
[1724032919710,2.4154,2634.8,2634.4,5.41689]
[1724032920477,2.4154,2634.8,2634.4,1.621]
[1724032920771,2.4154,2634.8,2634.5,0.83651757]
[1724032920980,2.4154,2634.8,2634.4,5.41689]
[1724032921487,2.4154,2634.8,2634.5,0.83651078]
[1724032921693,2.4154,2634.8,2634.4,5.41689]
[1724032921847,2.4154,2634.8,2634.4,1.621]
[1724032921848,7.211329,2634.8,2634.4,1.621]
[1724032922048,2.4154,2634.8,2634.4,1.621]
[1724032922671,2.4154,2634.8,2634.5,0.83651756]
[1724032922878,2.4154,2634.8,2634.4,1.621]
[1724032923028,2.4154,2634.8,2634.5,0.83650502]
[1724032923370,2.4154,2634.8,2634.4,5.41685]
[1724032923586,2.4154,2634.8,2634.5,0.83651271]
[1724032923786,2.4154,2634.8,2634.4,1.621]
[1724032923943,7.211349,2634.8,2634.4,1.621]
[1724032925202,3.415969,2634.8,2634.4,1.621]
[1724032925515,2.4154,2634.8,2634.4,1.621]
[1724032926953,2.4706,2634.7,2634.4,1.621]
[1724032929204,2.4706,2634.7,2634.5,0.83652317]
[1724032929507,2.4706,2634.7,2634.4,1.621]
[1724032929872,2.4706,2634.7,2634.5,0.83652335]
[1724032930071,2.4706,2634.7,2634.4,5.41689]
[1724032930282,2.4706,2634.7,2634.5,0.83649557]
[1724032930484,2.4706,2634.7,2634.4,5.41689]
[1724032930818,2.4706,2634.7,2634.5,0.83651337]
[1724032931018,2.4706,2634.7,2634.4,5.41689]
[1724032931198,2.4706,2634.7,2634.5,0.83650914]
[1724032931549,2.4706,2634.7,2634.6,0.83650175]
[1724032931679,2.4706,2634.7,2634.5,3.79577]
[1724032931680,2.4706,2634.7,2634.5,3.79568]
[1724032931882,2.4706,2635.1,2634.6,0.83650163]
[1724032932083,2.4706,2635.1,2634.5,3.79568]
[1724032932285,2.4706,2635.1,2634.6,0.83648158]
[1724032932487,2.4706,2635.1,2634.5,7.59137]
[1724032932698,0.73951582,2635.0,2634.6,0.83648119]
[1724032932896,2.4706,2634.7,2634.4,0.83656049]
[1724032933108,2.4706,2634.7,2634.2,8.41711]
[1724032933413,2.4706,2634.7,2634.3,0.83657016]
[1724032933615,2.4706,2634.7,2634.4,0.83657016]
[1724032933818,2.4706,2634.7,2634.2,8.41711]
[1724032934115,2.4706,2634.7,2634.3,2.15705214]
[1724032934319,2.4706,2634.7,2634.4,4.13778017]
[1724032934484,2.4706,2634.7,2634.5,0.83652477]
[1724032934691,2.4706,2634.7,2634.3,3.79596]
[1724032934692,2.4706,2634.7,2634.4,3.79592]
[1724032934873,2.4706,2634.7,2634.5,0.83651526]
[1724032935074,2.4706,2634.7,2634.4,3.79592]
[1724032935474,2.4706,2634.7,2634.3,2.65716]
[1724032935707,2.4706,2634.7,2634.4,0.83655049]
[1724032935885,2.4706,2634.7,2634.3,2.65716]
[1724032936085,2.4706,2634.7,2634.4,0.8365559]
[1724032936297,2.4706,2634.7,2634.3,5.31434]
[1724032936610,2.4706,2634.8,2634.4,4.8142561]
[1724032936772,2.4706,2634.8,2634.4,2.65713]
[1724032937400,2.4706,2634.8,2634.5,0.83654566]
[1724032937710,2.4706,2634.8,2634.4,2.65713]
[1724032938496,2.4706,2634.8,2634.5,0.83654334]
[1724032938701,2.4706,2634.8,2634.4,2.65713]
[1724032939015,2.4706,2634.8,2634.5,0.83654271]
[1724032939220,2.4706,2634.8,2634.4,2.65713]
[1724032939406,2.4706,2634.8,2634.5,0.83652554]
[1724032939619,2.4706,2634.8,2634.3,3.07250571]
[1724032939825,2.4706,2634.8,2634.4,0.83654577]
[1724032939992,2.4706,2634.8,2634.3,2.65716]
[1724032940337,2.4706,2634.8,2634.4,0.83655777]
[1724032940486,3.24899,2634.8,2634.3,2.65716]
[1724032940684,3.24899,2634.8,2634.4,2.15712085]
[1724032941017,3.24899,2634.8,2634.3,2.60716]
[1724032941248,3.24899,2634.8,2634.4,0.83655775]
[1724032941400,0.59057,2634.7,2634.3,2.60716]
[1724032941605,2.4706,2634.6,2634.4,0.83655938]
[1724032941805,2.4706,2634.6,2634.3,2.60716]
[1724032942008,2.4706,2634.6,2634.4,0.83656562]
[1724032942193,2.4706,2634.6,2634.3,2.60716]
[1724032942533,2.65705,2634.5,2634.4,0.83655819]
[1724032942685,2.3754,2634.3,2634.1,0.83664114]
[1724032942886,2.3754,2634.3,2634.0,1.98112612]
[1724032943127,2.87866,2634.3,2634.1,0.83667775]
[1724032943287,2.87866,2634.3,2633.9,2.3966397]
[1724032943488,2.87866,2634.3,2634.0,2.15742659]
[1724032943790,2.87866,2634.3,2633.9,1.98115962]
[1724032944029,2.87866,2634.3,2634.0,2.15745672]
[1724032944223,2.3754,2634.1,2633.9,1.98114782]
[1724032944426,2.3754,2634.1,2633.6,2.82305374]
[1724032944611,5.03289,2634.1,2633.7,4.13890703]
[1724032944817,5.03289,2634.1,2633.6,5.48099374]
[1724032944818,5.03289,2634.1,2633.8,2.15760886]
[1724032945013,5.03289,2634.1,2633.7,1.98124651]
[1724032945327,5.03289,2634.1,2633.8,0.83673934]
[1724032945513,5.03289,2634.1,2633.7,1.98129184]
[1724032945713,5.03289,2634.1,2633.8,2.45772587]
[1724032945913,5.03289,2634.1,2633.8,1.621]
[1724032947403,2.3457,2633.9,2633.5,2.76777002]
[1724032947618,2.3457,2633.9,2633.7,1.621]
[1724032948329,2.3457,2634.1,2633.7,1.621]
[1724032948495,2.3457,2634.1,2633.9,1.621]
[1724032949289,2.65718,2634.4,2633.9,1.621]
[1724032949290,2.3457,2634.3,2633.9,1.621]
[1724032949541,2.3457,2634.3,2634.1,1.621]
[1724032952330,2.845975,2634.3,2634.1,1.621]
[1724032952630,2.845975,2634.3,2633.9,1.621]
[1724032953156,2.3457,2634.3,2633.9,1.621]
[1724032953331,2.65705,2634.5,2633.8,0.83669578]
[1724032953332,2.65745,2634.1,2633.8,0.83669578]
[1724032953535,2.3457,2633.9,2633.5,1.621]
[1724032954029,2.3457,2633.9,2633.7,1.621]
[1724032954729,2.4466,2634.4,2633.7,2.45771644]
[1724032954949,2.4466,2634.4,2633.9,1.621]
[1724032954950,0.41004681,2634.3,2633.9,1.621]
[1724032955123,2.4466,2634.4,2633.9,1.621]
[1724032955624,2.65733,2634.3,2633.9,1.621]
[1724032956757,2.4466,2634.4,2633.9,4.27862]
[1724032957499,5.10377,2634.4,2633.9,1.621]
[1724032957698,5.879849,2634.4,2633.9,1.621]
[1724032960313,5.10377,2634.4,2633.9,1.621]
[1724032960549,2.4466,2634.4,2633.9,1.621]
[1724032961047,2.4466,2634.4,2633.9,4.27865]
[1724032962116,5.10378,2634.4,2633.9,4.27865]
[1724032962614,5.10378,2634.4,2633.9,1.621]
[1724032963247,3.36808177,2634.3,2633.9,1.621]
[1724032963447,2.3622,2634.1,2633.8,0.83667723]
[1724032963749,2.3622,2634.1,2633.7,2.45771048]
[1724032963927,2.3622,2634.1,2633.7,1.621]
[1724032964532,2.65765,2634.0,2633.4,5.65815]
[1724032964745,2.65765,2634.0,2633.5,3.77865078]
[1724032964945,2.65765,2634.0,2633.6,0.83675964]
[1724032965152,2.65765,2634.0,2633.5,1.621]
[1724032965354,2.65765,2634.0,2633.6,0.83674267]
[1724032965569,2.65765,2634.0,2633.5,1.621]
[1724032965724,2.65765,2634.0,2633.6,0.83674532]
[1724032965921,2.65765,2634.0,2633.5,1.621]
[1724032966143,2.65776,2633.8,2633.6,0.83675031]
[1724032966463,2.65776,2633.8,2633.5,1.621]
[1724032966619,2.65776,2633.8,2633.6,0.8367854]
[1724032966942,2.65776,2633.8,2633.5,1.621]
[1724032967144,3.437211,2633.8,2633.4,3.0]
[1724032967347,2.4791,2633.7,2633.5,0.83682761]
[1724032967656,2.4791,2633.7,2633.3,4.621]
[1724032967842,2.4791,2633.7,2633.4,0.83684873]
[1724032968046,2.4791,2633.7,2633.3,4.621]
[1724032968250,2.4791,2633.7,2633.4,0.83684907]
[1724032968559,2.4791,2633.7,2633.3,4.621]
[1724032968757,2.4791,2633.7,2633.4,0.83685508]
[1724032969069,2.4791,2633.7,2633.3,4.621]
[1724032969647,2.4791,2633.7,2633.4,0.83685729]
[1724032969865,2.4791,2633.7,2633.3,4.621]
[1724032970152,2.6576,2634.0,2633.5,1.621]
[1724032970153,2.298,2633.9,2633.5,1.621]
[1724032970355,2.298,2633.9,2633.6,0.83679418]
[1724032970544,2.298,2633.9,2633.5,1.621]
[1724032971063,4.95567,2633.9,2633.5,1.621]
[1724032971461,4.95567,2633.9,2633.6,0.83678729]
[1724032971632,4.95567,2633.9,2633.5,1.621]
[1724032972165,4.95567,2633.9,2633.6,0.83679143]
[1724032972363,2.298,2633.9,2633.5,1.621]
[1724032972562,2.298,2633.9,2633.6,0.83679861]
[1724032972736,2.298,2633.9,2633.5,1.621]
[1724032972941,2.298,2633.9,2633.6,0.83678475]
[1724032973127,2.298,2633.9,2633.5,1.621]
[1724032973332,2.298,2633.9,2633.7,1.621]
[1724032976178,2.3832,2634.1,2633.7,1.621]
[1724032976473,2.3832,2634.1,2633.8,3.4944525]
[1724032976769,2.3832,2634.1,2633.8,2.65774]
[1724032977330,2.3832,2634.3,2633.9,1.621]
[1724032978592,5.544498,2634.3,2633.7,1.621]
[1724032978732,2.65735,2634.2,2633.7,1.621]
[1724032978933,2.3832,2634.1,2633.7,1.621]
[1724032979232,3.1759788,2634.1,2633.7,1.621]
[1724032980467,2.3832,2634.1,2633.7,1.621]
[1724032980659,2.3832,2634.1,2633.8,0.83670094]
[1724032980980,2.3832,2634.1,2633.7,1.621]
[1724032981150,2.3832,2634.1,2633.8,0.83668523]
[1724032981345,2.3832,2634.1,2633.8,2.65773]
[1724032981556,2.3832,2634.1,2633.9,4.27858]
[1724032982443,2.3832,2634.1,2633.9,1.621]
[1724032983750,2.887246,2634.1,2633.9,1.621]
[1724032983947,2.3832,2634.1,2633.7,0.83673923]
[1724032984283,2.3832,2634.1,2633.6,1.621]
[1724032984500,4.95078,2633.9,2633.4,1.98113341]
[1724032984682,4.95078,2633.9,2633.5,3.77870862]
[1724032984881,4.95078,2633.9,2633.6,0.83678215]
[1724032985083,4.95078,2633.9,2633.5,1.621]
[1724032985287,4.95078,2633.9,2633.6,0.8367761]
[1724032985504,5.4962636,2633.9,2633.5,1.621]
[1724032985651,5.4962636,2633.9,2633.6,0.83678144]
[1724032985851,5.4962636,2633.9,2633.7,0.83678144]
[1724032986082,5.4962636,2633.9,2633.5,3.60238801]
[1724032986287,5.4962636,2633.9,2633.6,0.83677381]
[1724032986481,2.96382636,2633.8,2633.5,1.621]
[1724032986701,2.96382636,2633.8,2633.6,0.83677327]
[1724032986951,2.96382636,2633.8,2633.5,1.621]
[1724032987255,2.4142,2633.8,2633.6,0.83679111]
[1724032987450,2.4142,2633.8,2633.5,1.621]
[1724032987680,2.4142,2633.8,2633.6,0.83678938]
[1724032987887,2.4142,2633.8,2633.5,3.60240661]
[1724032988183,2.4142,2633.8,2633.6,0.8367887]
[1724032988398,2.4142,2633.8,2633.5,3.60240661]
[1724032988556,2.4142,2633.8,2633.6,2.15771784]
[1724032988761,2.4142,2633.8,2633.5,1.621]
[1724032988956,2.4142,2633.8,2633.6,2.15769793]
[1724032989303,2.4142,2633.8,2633.5,1.621]
[1724032989490,2.4142,2633.8,2633.6,2.15769921]
[1724032989801,2.4142,2633.8,2633.7,0.83677833]
[1724032990553,2.4252,2634.0,2633.7,2.45777833]
[1724032990800,2.7413546,2634.0,2633.7,1.621]
[1724032991952,5.3989146,2634.0,2633.7,1.621]
[1724032992178,0.80564046,2633.9,2633.7,1.621]
[1724032993254,2.4252,2634.0,2633.7,1.621]
[1724032995709,2.4252,2634.0,2633.8,0.8367544]
[1724032995899,5.12388,2634.2,2633.7,1.621]
[1724032996097,2.65748,2634.1,2633.8,0.83673895]
[1724032996297,2.65748,2634.1,2633.7,1.621]
[1724032997079,3.83654232,2634.2,2633.8,0.83674804]
[1724032997278,3.83654232,2634.2,2633.7,1.621]
[1724032997576,2.65755,2634.0,2633.7,1.621]
[1724032997808,2.65755,2634.0,2633.8,0.83675026]
[1724032998005,2.65755,2634.0,2633.7,1.621]
[1724032998185,2.4665,2634.1,2633.8,0.8367502]
[1724032998395,2.4665,2634.1,2633.7,1.621]
[1724032998597,2.4665,2634.1,2633.8,0.8367324]
[1724032998795,2.4665,2634.1,2633.7,1.621]
[1724032999016,2.4665,2634.1,2633.8,0.83673258]
[1724032999193,2.4665,2634.1,2633.7,1.621]
[1724032999517,2.4665,2634.1,2633.8,4.81525638]
[1724032999811,2.4665,2634.1,2633.9,2.45772928]
[1724032999998,2.4665,2634.1,2633.9,1.621]
[1724033000584,2.4665,2634.3,2633.9,1.621]
[1724033000782,5.88123162,2634.4,2634.1,1.621]
[1724033001012,2.4665,2634.5,2634.2,0.83667537]
[1724033001181,2.4665,2634.5,2634.1,1.621]
[1724033001382,2.4665,2634.5,2634.2,0.83659814]
[1724033001612,2.4665,2634.5,2634.1,1.621]
[1724033001613,2.98005984,2634.5,2634.1,1.621]
[1724033001832,2.98005984,2634.5,2634.2,0.83660083]
[1724033002115,2.98005984,2634.5,2634.1,4.27843]
[1724033002315,2.4665,2634.5,2634.2,0.83660104]
[1724033002477,8.53801162,2634.8,2634.1,4.27843]
[1724033002478,2.4665,2634.7,2634.3,4.27815]
[1724033002674,2.4665,2634.7,2634.4,2.65712]
[1724033002878,5.88123162,2634.8,2634.3,1.621]
[1724033003092,5.88123162,2634.8,2634.3,6.93533]
[1724033003598,5.88123162,2634.8,2634.4,2.65715]
[1724033003814,5.88123162,2634.8,2634.3,4.27815]
[1724033004658,5.88123162,2634.8,2634.7,4.27784]
[1724033004795,8.34813162,2635.3,2634.8,2.65667]
[1724033005014,8.34813162,2635.3,2634.9,1.621]
[1724033007731,11.00437162,2635.3,2634.9,1.621]
[1724033009432,11.00437162,2635.3,2634.7,4.27777]
[1724033009644,1.32409826,2635.2,2634.7,4.27777]
[1724033011070,3.98046826,2635.2,2634.5,5.31398]
[1724033011211,2.65674,2634.9,2634.4,1.621]
[1724033011411,5.03394,2634.8,2634.4,1.621]
[1724033011625,5.03394,2634.8,2634.2,1.621]
[1724033011913,5.803008,2634.8,2634.4,1.621]
[1724033012948,5.803008,2634.8,2634.2,1.621]
[1724033012949,2.65696,2634.6,2634.2,1.621]
[1724033013244,5.03417,2634.5,2634.0,1.621]
[1724033013449,5.03417,2634.5,2634.0,4.621]
[1724033015438,2.65716,2634.4,2634.0,4.621]
[1724033015738,2.65716,2634.4,2634.0,1.621]
[1724033016449,2.65716,2634.4,2633.9,2.6576]
[1724033016635,3.160586,2634.4,2633.9,2.6576]
[1724033016852,2.3876,2634.3,2633.9,2.6576]
[1724033018053,2.3876,2634.3,2633.7,5.65782]
[1724033018054,2.3876,2634.3,2633.7,2.65778]
[1724033018275,5.04513,2634.1,2633.5,2.65802]
[1724033025444,2.4326,2634.0,2633.5,2.65802]
[1724033026392,2.4326,2634.0,2633.5,5.31601]
[1724033026599,2.4326,2634.0,2633.6,2.65794]
[1724033027792,2.4326,2634.0,2633.5,2.65798]
[1724033027990,2.4326,2634.0,2633.5,5.31596]
[1724033028339,2.4326,2634.0,2633.6,2.65794]
[1724033032603,2.66498881,2634.7,2633.9,2.65762]
[1724033032917,2.66498881,2634.7,2634.1,2.65739]
[1724033032918,2.65686,2634.7,2634.1,2.65739]
[1724033033083,2.6567,2634.9,2634.1,5.31474]
[1724033033084,5.31342,2634.9,2634.1,5.31474]
[1724033033320,2.92237,2634.9,2634.2,2.65734]
[1724033033546,5.57909,2634.9,2634.2,2.65734]
[1724033033685,5.57909,2634.9,2634.4,2.65706]
[1724033033686,0.26567,2634.9,2634.4,2.65706]
[1724033033893,0.02248731,2635.1,2634.3,2.65716]
[1724033034446,2.65642,2635.2,2634.5,5.31396]
[1724033034591,2.65618,2635.4,2634.2,0.83662064]
[1724033034792,2.65618,2635.4,2634.5,2.65699]
[1724033034793,2.65627,2635.3,2634.5,2.65699]
[1724033034988,2.65627,2635.3,2634.7,2.65684]
[1724033034989,2.921888,2635.3,2634.7,2.65684]
[1724033035625,2.4384,2635.2,2634.7,2.65684]
[1724033038690,2.4384,2635.2,2634.7,5.31361]
[1724033038933,2.4384,2635.2,2634.7,2.65677]
[1724033039123,2.4384,2635.2,2634.7,5.31354]
[1724033039609,2.4384,2635.2,2634.7,5.31355]
[1724033040008,2.4384,2635.2,2634.8,2.65671]
[1724033040410,2.4384,2635.2,2634.8,4.27671]
[1724033040805,2.4384,2635.2,2634.9,2.65662]
[1724033041033,2.4384,2635.2,2635.0,2.65654]
[1724033041427,2.4384,2635.2,2634.8,1.62]
[1724033042829,2.4384,2635.2,2634.9,2.65662]
[1724033043030,2.4384,2635.2,2634.7,2.65679]
[1724033043345,2.4384,2635.2,2634.9,1.62]
[1724033043548,2.4384,2635.2,2634.9,4.27662]
[1724033043858,2.3899,2635.4,2634.9,4.27662]
[1724033044047,5.04608,2635.4,2634.9,1.62]
[1724033044220,7.7023,2635.4,2634.9,1.62]
[1724033044421,5.04608,2635.4,2634.9,1.62]
[1724033045247,5.8428448,2635.4,2634.9,1.62]
[1724033045634,5.8428448,2635.4,2634.9,4.27662]
[1724033047126,2.4633,2635.3,2634.9,4.27662]
[1724033047457,2.65643,2635.2,2634.5,2.65698]
[1724033047748,2.65643,2635.2,2634.6,4.27692]
[1724033047749,2.4633,2635.1,2634.6,4.27692]
[1724033048059,2.4633,2634.8,2634.4,1.62]
[1724033048264,2.4633,2634.8,2634.4,4.62]
[1724033048752,5.12011,2634.8,2634.4,1.62]
[1724033048951,2.4236,2634.6,2634.4,1.62]
[1724033050551,2.4236,2634.6,2634.1,2.65737]
[1724033050959,2.4236,2634.6,2634.1,5.31475]
[1724033051260,2.4236,2634.6,2634.1,2.65737]
[1724033053559,2.4236,2634.6,2634.1,5.31475]
[1724033053960,2.4236,2634.6,2634.1,2.65737]
[1724033055770,2.4236,2634.6,2634.1,5.31475]
[1724033055972,2.4236,2634.6,2634.1,2.65737]
[1724033056854,2.4236,2634.6,2634.2,2.65734]
[1724033057984,2.4236,2634.6,2634.1,2.65737]
[1724033058268,2.4236,2634.6,2634.3,2.65724]
[1724033058645,2.4236,2634.6,2634.1,6.15130015]
[1724033058851,2.4236,2634.6,2634.2,2.65728]
[1724033059672,2.4236,2634.6,2634.3,2.65724]
[1724033061651,2.4236,2634.6,2634.3,2.65717]
[1724033062053,2.4236,2634.6,2634.3,5.31435]
[1724033062383,2.4236,2634.6,2634.4,2.65714]
[1724033064067,2.4236,2634.6,2634.3,2.65717]
[1724033064259,2.4236,2634.6,2634.3,5.31435]
[1724033065284,2.4084,2635.0,2634.1,3.89]
[1724033065455,2.4084,2635.0,2634.6,2.65689]
[1724033065875,2.4084,2635.0,2634.6,5.31377]
[1724033066043,2.4084,2635.0,2634.7,2.65681]
[1724033066472,2.4084,2635.0,2634.8,2.65673]
[1724033066660,2.3695,2635.4,2634.8,2.65673]
[1724033066855,2.3695,2635.3,2634.8,2.65673]
[1724033068447,2.3695,2635.3,2634.6,2.6569]
[1724033068448,2.3695,2635.2,2634.6,2.6569]
[1724033068679,2.3695,2635.0,2634.4,2.65708]
[1724033068853,2.3695,2635.0,2634.5,2.65705]
[1724033070094,2.3695,2635.0,2634.4,0.83650399]
[1724033070401,2.3695,2635.0,2634.2,0.83653474]
[1724033070402,2.3921,2634.6,2634.2,0.83653474]
[1724033070607,2.3921,2634.6,2634.2,2.65735]
[1724033071731,2.3921,2634.6,2634.3,2.65724]
[1724033072472,2.3921,2634.6,2634.5,1.621]
[1724033074137,2.403,2634.8,2634.5,4.27804]
[1724033074349,2.403,2634.8,2634.7,1.621]
[1724033076130,2.403,2634.8,2634.5,4.27804]
[1724033079326,2.403,2634.8,2634.3,2.65724]
[1724033079540,2.403,2634.8,2634.4,1.621]
[1724033079541,2.6433,2634.8,2634.4,1.621]
[1724033082305,2.403,2634.8,2634.4,1.621]
[1724033082715,2.403,2634.8,2634.6,1.621]
[1724033084502,4.93485,2635.0,2634.6,1.621]
[1724033088233,2.2783,2635.0,2634.6,4.27788]
[1724033089414,2.2783,2635.0,2634.6,1.621]
[1724033089623,2.50613,2635.0,2634.6,1.621]
[1724033089833,2.50613,2635.0,2634.3,4.63800347]
[1724033090033,2.50613,2635.0,2634.0,5.00245304]
[1724033090034,2.2946,2634.6,2634.4,0.83654266]
[1724033090230,2.2946,2634.6,2634.2,1.621]
[1724033090428,2.2946,2634.6,2634.3,0.83659631]
[1724033090632,2.2946,2634.6,2634.2,3.60194232]
[1724033090938,2.2946,2634.6,2634.3,0.83659798]
[1724033091124,2.2946,2634.6,2634.2,3.60194232]
[1724033091327,2.2946,2634.6,2634.3,0.83659443]
[1724033091505,2.2946,2634.6,2634.2,1.621]
[1724033091701,2.2946,2634.6,2634.4,1.621]
[1724033095845,2.789735,2634.6,2634.1,3.79067889]
[1724033096036,4.95162,2634.6,2634.2,4.13831335]
[1724033096215,4.95162,2634.6,2634.1,1.621]
[1724033096416,2.2946,2634.5,2634.1,1.621]
[1724033097542,2.2946,2634.5,2634.0,3.0]
[1724033097736,2.2946,2634.5,2634.1,3.77839063]
[1724033098057,2.2946,2634.5,2634.1,1.621]
[1724033098264,4.95165,2634.5,2634.2,0.83664566]
[1724033098460,2.2946,2634.4,2634.1,1.621]
[1724033099068,4.95175,2634.4,2634.1,1.621]
[1724033100460,4.99021,2634.0,2633.7,1.20574791]
[1724033100661,4.99021,2634.0,2633.8,2.15762592]
[1724033100870,4.99021,2634.0,2633.6,0.41508957]
[1724033101178,4.99021,2634.0,2633.7,1.621]
[1724033106042,4.99021,2634.0,2633.4,5.43012554]
[1724033106043,5.754971,2634.0,2633.6,0.83676103]
[1724033106245,2.3085,2633.9,2633.4,3.49494274]
[1724033106476,2.3085,2633.9,2633.4,4.27908]
[1724033107844,2.3085,2633.9,2633.4,5.11590913]
[1724033108045,2.3085,2633.9,2633.4,4.27908]
[1724033108246,2.3085,2633.9,2633.4,5.11590913]
[1724033109104,2.3085,2633.9,2633.4,4.27908]
[1724033109589,2.805111,2633.9,2633.3,0.83682913]
[1724033109790,2.3318,2633.7,2633.3,1.621]
[1724033110170,2.65796,2633.6,2633.1,0.83682913]
[1724033110364,4.99681,2633.5,2633.0,1.621]
[1724033110888,4.99681,2633.5,2633.0,4.27954]
[1724033111476,2.3387,2633.4,2633.0,4.27954]
[1724033112281,2.8882786,2633.4,2633.0,1.621]
[1724033112878,2.8882786,2633.4,2633.0,4.27956]
[1724033113084,2.3387,2633.4,2633.0,4.27956]
[1724033113707,2.3387,2633.4,2633.2,1.621]
[1724033118485,4.93262,2633.6,2633.2,1.621]
[1724033118810,6.42067,2633.6,2633.2,1.621]
[1724033125908,4.93262,2633.6,2633.2,1.621]
[1724033129065,4.92958199,2633.6,2633.2,1.621]
[1724033131068,2.3515,2634.0,2633.4,1.621]
[1724033131253,5.00908,2634.0,2633.6,1.621]
[1724033132468,2.3515,2634.0,2633.8,1.621]
[1724033132680,2.3515,2634.6,2634.2,2.65729]
[1724033132903,2.3515,2634.6,2634.5,1.621]
[1724033133177,2.65636,2635.2,2634.5,1.621]
[1724033133178,2.3515,2634.9,2634.5,1.621]
[1724033133511,2.3515,2635.3,2634.7,4.27778]
[1724033133637,2.3515,2635.3,2634.7,1.621]
[1724033133832,2.85436825,2635.3,2634.7,1.621]
[1724033134270,2.85436825,2635.3,2634.8,2.65674]
[1724033134796,0.09269815,2635.2,2634.8,2.65674]
[1724033135133,0.09269815,2635.2,2634.9,1.621]
[1724033135768,2.85436825,2635.3,2634.9,1.621]
[1724033135977,0.09261467,2635.1,2634.9,1.621]
[1724033136273,2.85436825,2635.3,2634.9,1.521]
[1724033136274,0.09253117,2635.0,2634.9,1.521]
[1724033136470,0.55105482,2635.2,2634.9,1.521]
[1724033136771,0.09261467,2635.1,2634.9,1.521]
[1724033138536,0.65776162,2635.1,2634.7,1.621]
[1724033138757,0.65776162,2635.1,2634.5,4.27801]
[1724033139769,0.65776162,2635.1,2634.7,1.621]
[1724033141374,0.09261467,2635.1,2634.7,1.621]
[1724033144288,0.09261467,2635.1,2634.6,2.65694]
[1724033144581,0.09261467,2635.1,2634.7,1.621]
[1724033145960,1.621,2635.7,2634.7,1.621]
[1724033145961,2.4328,2635.6,2634.9,4.27754]
[1724033146292,2.4328,2635.6,2635.2,1.621]
[1724033146847,2.4328,2635.9,2635.4,1.621]
[1724033147048,2.4328,2635.9,2635.8,1.621]
[1724033148148,2.4328,2636.2,2635.8,1.621]
[1724033148355,2.941598,2636.2,2635.8,1.621]
[1724033148682,2.941598,2636.2,2635.7,2.65577]
[1724033148852,5.13418,2636.1,2635.5,2.65599]
[1724033149499,0.09017742,2636.0,2635.5,2.65599]
[1724033150226,0.09017742,2636.0,2635.6,2.65592]
[1724033150396,0.09017742,2636.0,2635.5,2.65599]
[1724033150585,0.09017742,2636.0,2635.7,2.65583]
[1724033152881,0.09017742,2636.0,2635.7,5.31159]
[1724033153090,0.09017742,2636.0,2635.7,2.65576]
[1724033153282,0.09017742,2636.0,2635.8,2.65572]
[1724033153483,5.13507,2636.4,2635.8,2.65572]
[1724033153683,0.3527847,2636.3,2635.9,2.65563]
[1724033155411,0.3527847,2636.3,2635.7,2.65576]
[1724033155881,3.0080247,2636.3,2635.7,2.65576]
[1724033156329,0.3527847,2636.3,2635.7,2.65576]
[1724033157288,3.0080147,2636.3,2635.7,2.65576]
[1724033157494,2.498,2636.2,2635.7,2.65576]
[1724033157691,0.08710086,2636.1,2635.7,2.65576]
[1724033159236,0.37216265,2636.1,2635.5,2.65596]
[1724033159536,0.37216265,2636.1,2635.6,2.65593]
[1724033159839,0.08710086,2636.1,2635.6,2.65593]
[1724033160509,0.08710086,2636.1,2635.7,2.65582]
[1724033161451,0.08710086,2636.1,2635.7,5.31158]
[1724033161615,0.08710086,2636.1,2635.9,2.65557]
[1724033163014,2.3828,2636.4,2635.9,2.65557]
[1724033163227,0.08673932,2636.0,2635.9,2.65557]
[1724033163426,5.03795,2636.4,2635.9,2.65557]
[1724033163632,0.08673932,2636.0,2635.9,2.65557]
[1724033163942,0.08713371,2636.0,2635.9,2.65557]
[1724033164238,5.03795,2636.4,2635.9,2.65557]
[1724033164747,0.08684996,2636.3,2635.9,2.65557]
[1724033167249,2.2714,2635.9,2635.2,6.49236172]
[1724033167409,2.65581,2635.8,2635.2,3.0]
[1724033167615,2.2626,2635.7,2635.0,2.65645]
[1724033167912,2.2626,2635.7,2635.1,3.0]
[1724033167913,0.0869089,2635.6,2635.1,3.0]
[1724033168446,0.0869089,2635.6,2635.3,2.65616]
[1724033168740,0.0869089,2635.6,2635.4,2.65614]
[1724033168948,2.3716,2636.0,2635.5,2.65604]
[1724033169306,0.08715923,2635.9,2635.4,2.65607]
[1724033169709,0.08715923,2635.9,2635.4,5.31214]
[1724033170206,0.08715923,2635.9,2635.4,2.65607]
[1724033170405,0.08715923,2635.9,2635.4,2.65614]
[1724033171056,2.74280923,2635.9,2635.4,2.65614]
[1724033171265,2.74280923,2635.9,2635.2,5.31254]
[1724033171609,0.08715923,2635.9,2635.5,2.65603]
[1724033171814,0.08715923,2635.9,2635.4,2.65607]
[1724033173017,0.08715923,2635.9,2635.2,3.49245668]
[1724033173018,2.479,2635.8,2635.2,5.31256]
[1724033173361,2.479,2635.8,2635.4,2.65606]
[1724033173362,0.08728131,2635.7,2635.4,2.65606]
[1724033173860,2.479,2636.0,2635.5,2.65598]